Cogmind - Beta 13 --- EXPLORER MODE // 2024.04.11 @ 21:23:47 Player: Sulairris Result: Destroyed by H-66 Slayer with Gauss Rifle Performance ------------- Evolutions (5) 2500 Regions Visited (9) 1800 Robots Destroyed (38) 190 Value Destroyed (1316) 1316 Prototype IDs (1) 20 Alien Tech Used (0) 0 Bonus (0) 0 TOTAL SCORE: 5826 Bonus ------- None Cogmind --------- Core Integrity 0/1000 Matter 249/300 Energy 21/100 System Corruption 3% Temperature Cool (0) Movement Core (50) Location -5/Factory Parts ------- > --- POWER (6) -------- (None) > --- PROPULSION (3) --- (None) > --- UTILITY (2) ------ Visual Processing Unit > --- WEAPON (7) ------- (None) > --- INVENTORY (5) ---- Improved Medium Treads Heat Sink Target Analyzer Peak State ------------ > --- POWER ------------ (None) > --- PROPULSION ------- Light Treads Advanced Treads > --- UTILITY ---------- Visual Processing Unit Improved Utility Shielding > --- WEAPON ----------- Particle Gun Proton Cannon Plasma Cannon Phase Cannon Shock Bomb Launcher > --- INVENTORY -------- Wheel Heat Sink Target Analyzer Tractor Beam Particle Gun [Rating: 28] Favorites ----------- Power Light Ion Engine Engine Light Ion Engine Propulsion Light Treads Treads Light Treads Leg Aluminum Leg Wheel Wheel Utility Visual Processing Unit Device Structural Scanner Processor Visual Processing Unit Protection Improved Utility Shielding Weapon Shock Bomb Launcher Energy Gun Particle Gun Energy Cannon Plasma Cannon Ballistic Gun Autogun Launcher Shock Bomb Launcher Special Weapon Mining Laser Build | -11 -10 -10 -9 -8 -7 -7 -7 -6 -5 ------- Run | Yrd Mat Min Mat Mat Fac Low Low Fac Fac Slots Evolved 11 | . 1 . 2 2 2 . . 2 2 Power 5 | . . . 2 2 . . . . 1 Propulsion 1 | . . . . . . . . . 1 Utility . | . . . . . . . . . . Weapon 5 | . 1 . . . 2 . . 2 . Parts Attached 45 | 6 1 1 11 5 4 4 1 5 7 Power 4 | 1 . . 2 . . . . . 1 Engine 4 | 1 . . 2 . . . . . 1 Core . | . . . . . . . . . . Reactor . | . . . . . . . . . . Propulsion 10 | 2 . . 3 1 1 1 . 2 . Treads 4 | . . . 2 1 1 . . . . Leg 5 | 2 . . 1 . . . . 2 . Wheel 1 | . . . . . . 1 . . . Hover . | . . . . . . . . . . Flight . | . . . . . . . . . . Utility 8 | 2 . . 2 2 . . 1 . 1 Device 4 | 1 . . 1 . . . 1 . 1 Storage . | . . . . . . . . . . Processor 1 | . . . 1 . . . . . . Hackware . | . . . . . . . . . . Protection 3 | 1 . . . 2 . . . . . Artifact . | . . . . . . . . . . Weapon 23 | 1 1 1 4 2 3 3 . 3 5 Energy Gun 13 | 1 . . 3 1 1 1 . 2 4 Energy Cannon 4 | . . . . . 2 2 . . . Ballistic Gun 1 | . . . . . . . . . 1 Ballistic Cannon . | . . . . . . . . . . Launcher 4 | . . 1 1 1 . . . 1 . Special Weapon 1 | . 1 . . . . . . . . Impact Weapon . | . . . . . . . . . . Slashing Weapon . | . . . . . . . . . . Piercing Weapon . | . . . . . . . . . . Special Melee Weapon . | . . . . . . . . . . Unidentified Prototypes 1 | . . . 1 . . . . . . Parts Lost 30 | . . . 5 3 2 8 2 5 5 Power 2 | . . . 1 . . . . . 1 Propulsion 7 | . . . . 2 . 2 1 2 . Utility 4 | . . . 1 1 . . 1 . 1 Weapon 17 | . . . 3 . 2 6 . 3 3 Highest Loss Streak 8 | . . . 2 3 1 8 2 3 2 To Critical Strikes . | . . . . . . . . . . Average Slot Usage (%) 46 | . 75 87 84 49 47 52 14 28 15 Engine 4 | . 12 12 22 4 . . . . 2 Treads 5 | . . . 6 8 13 10 . . . Leg 4 | . 25 25 12 . . . . 10 . Device 3 | . 12 12 12 1 . . . . 2 Processor 5 | . . . 4 8 7 7 7 6 5 Protection 3 | . 12 12 2 5 7 5 . . . Energy Gun 7 | . 12 12 12 15 6 6 . 6 3 Energy Cannon 3 | . . . . . 6 15 . . . Launcher 4 | . . . 8 3 7 5 . 4 . Naked Turns . | . . . . . . . . . . Heaviest Build 34 | 9 10 14 24 17 25 34 1 15 9 Greatest Support 42 | 20 20 20 40 40 42 42 10 38 3 Greatest Overweight (x) 11 | . . . 2 3 . 11 . 1 2 Average Overweight (x) . | . . . . . . . . . . Largest Inventory Capacity 5 | 5 5 5 5 5 5 5 5 5 5 Average Capacity 5 | 5 5 5 5 5 5 5 5 5 5 Most Carried 5 | 5 5 5 5 5 5 5 3 5 4 Average Carried 3 | 2 4 4 3 3 4 4 2 3 3 Final Capacity 5 | 5 5 5 5 5 5 5 5 5 5 Final Carried 5 | 5 4 4 4 4 5 3 2 3 3 Class Distribution -------------------- 61% | Hacker-Mutant 20% | Hacker-Tank 10% | Hacker-Bomber 3% | Scavenger-Mutant Dominant Class ---------------- Hacker-Mutant | -10/Materials Hacker-Mutant | -10/Mines Hacker-Mutant | -9/Materials Hacker-Tank | -8/Materials Hacker-Tank | -7/Factory Hacker-Bomber | -7/Lower Caves Hacker-Mutant | -7/Lower Caves Hacker-Mutant | -6/Factory Hacker-Mutant | -5/Factory Resources | -11 -10 -10 -9 -8 -7 -7 -7 -6 -5 ----------- Run | Yrd Mat Min Mat Mat Fac Low Low Fac Fac Matter Collected 1076 | 32 . 65 311 182 65 18 . 56 347 Remotely . | . . . . . . . . . . Salvage Created 1217 | 66 66 . 101 262 265 . . 110 347 Parts 53 | 4 8 . 5 7 6 . . 8 15 Haulers Intercepted 1 | . . . . . 1 . . . . Recyclers Shooed 1 | . . . . . . . . 1 . Parts Field Recycled . | . . . . . . . . . . Retrieved Matter . | . . . . . . . . . . Parts Self-Destructed . | . . . . . . . . . . Prevented . | . . . . . . . . . . Kills | -11 -10 -10 -9 -8 -7 -7 -7 -6 -5 ------- Run | Yrd Mat Min Mat Mat Fac Low Low Fac Fac Combat Hostiles Destroyed 26 | 1 2 . 4 5 4 . . 3 7 Guns 20 | 1 2 . 2 5 4 . . . 6 AOE 5 | . . . 2 . . . . 3 . Classes Destroyed 13 | 2 2 . 2 1 1 . . 3 2 Worker 2 | . . . . . . . . 2 . Builder 2 | . . . . . . . . . 2 Tunneler 2 | 1 . . 1 . . . . . . Hauler 1 | . . . . . 1 . . . . Operator 2 | . . . 1 . . . . 1 . Watcher 3 | . 2 . . . . . . 1 . Swarmer 6 | . 2 . . . . . . . 4 Grunt 9 | 1 . . 1 1 3 . . 1 2 Brawler 1 | . . . . . . . . . 1 Duelist 1 | . . . . 1 . . . . . Sentry 7 | . . . 3 3 1 . . . . Hunter 1 | . . . . . . . . 1 . Programmer 1 | . . . . . . . . 1 . Best Kill Streak 4 | 2 3 . 3 2 1 . . 3 4 Combat Bots Only 4 | 1 2 . 2 2 1 . . 1 4 Max Kills in Single Turn 1 | 1 1 . 1 1 1 . . 1 1 Gunslinging . | . . . . . . . . . . Exploded 1 | . . . 1 . . . . 1 . Melee . | . . . . . . . . . . Uniques/NPCs Destroyed . | . . . . . . . . . . Combat | -11 -10 -10 -9 -8 -7 -7 -7 -6 -5 -------- Run | Yrd Mat Min Mat Mat Fac Low Low Fac Fac Hostile Shots Fired 874 | 7 2 . 73 71 119 78 21 314 189 Missed 340 | 2 1 . 28 18 48 29 7 146 61 Damage Taken 4840 | 51 3 . 469 641 523 699 126 896 1432 Core 2038 | 7 . . 107 177 125 184 54 384 1000 Absorbed by Shields . | . . . . . . . . . . Ignored by Resistances 2989 | 34 3 . 283 382 332 405 80 624 846 Core Remaining (%) 72 | 97 . 97 73 67 . . 48 54 . Volleys Fired 246 | 6 6 . 39 60 46 13 . 26 50 Largest 3 | 1 1 . 1 1 3 3 . 3 2 Hottest 225 | 40 40 . 100 56 214 225 . 169 108 Shots Fired 282 | 6 6 . 39 60 49 16 . 41 65 Gun 228 | 6 6 . 22 58 38 12 . 21 65 Cannon 9 | . . . . . 5 4 . . . Launcher 43 | . . . 15 2 6 . . 20 . Special 2 | . . . 2 . . . . . . Kinetic 23 | . . . . . . . . . 23 Thermal 172 | . . . 14 58 41 14 . 6 39 Explosive 35 | . . . 15 . . . . 20 . Electromagnetic 52 | 6 6 . 10 2 8 2 . 15 3 Robot Hit Streak 23 | 5 3 . 11 17 14 14 . 23 17 Robot Miss Streak 2 | . 1 . 2 2 2 1 . 1 1 Penetration Max . | . . . . . . . . . . Secondary Targets . | . . . . . . . . . . Shots Hit Robots 240 | 5 4 . 30 51 43 15 . 37 55 Core Hits 94 | 3 4 . 16 15 14 4 . 18 20 Critical Kills . | . . . . . . . . . . Critical Parts Destroyed . | . . . . . . . . . . Critical Strikes 5 | . . . . 1 . 1 . 1 2 Burn 5 | . . . . 1 . 1 . 1 2 Melee Attacks . | . . . . . . . . . . Impact . | . . . . . . . . . . Slashing . | . . . . . . . . . . Piercing . | . . . . . . . . . . Sneak Attacks . | . . . . . . . . . . Combat Hostiles . | . . . . . . . . . . Follow-up Attacks . | . . . . . . . . . . Damage Inflicted 5405 | 132 69 . 765 653 767 286 . 1752 981 Guns 2912 | 65 69 . 197 578 443 199 . 403 958 Cannons 187 | . . . . . 100 87 . . . Explosions 2232 | 67 . . 517 75 224 . . 1349 . Melee . | . . . . . . . . . . Ramming 26 | . . . 3 . . . . . 23 Kinetic 337 | . . . . . . . . . 337 Thermal 2413 | 67 . . 164 578 543 265 . 181 615 Explosive 1797 | . . . 517 . . . . 1280 . Electromagnetic 832 | 65 69 . 81 75 224 21 . 291 6 Impact . | . . . . . . . . . . Slashing . | . . . . . . . . . . Piercing . | . . . . . . . . . . Highest Corruption 3 | . . . . 1 1 1 1 . 3 Average Corruption 1 | . . . . 1 1 1 1 . 1 Corruption Purged . | . . . . . . . . . . Corruption Blocked . | . . . . . . . . . . Effects 8 | . . . . . 1 5 2 . . Message Errors 2 | . . . . . . 2 . . . Matter Fused 3 | . . . . . . 1 2 . . Heat Flow Errors 1 | . . . . . . 1 . . . Energy Discharges 1 | . . . . . 1 . . . . Weapon Failures 1 | . . . . . . 1 . . . Overload Shots . | . . . . . . . . . . Overflow Damage 10 | . . . . . . . . 10 . Projectiles . | . . . . . . . . . . Explosions 10 | . . . . . . . . 10 . Melee . | . . . . . . . . . . Knockbacks . | . . . . . . . . . . Impact . | . . . . . . . . . . Kinetic . | . . . . . . . . . . Secondary . | . . . . . . . . . . Self-Inflicted Damage 46 | 18 . . . 5 11 . . 2 10 Shots 5 | 1 . . . 1 2 . . 1 . Rammed 4 | . . . . . . . . . 4 Targets Rammed 5 | . . . 1 . . . . . 4 Kicked . | . . . . . . . . . . Crushed 1 | . . . 1 . . . . . . Highest Temperature 178 | 42 12 . 73 178 129 135 . 66 65 Average Temperature 33 | 19 7 . 24 58 25 44 . 17 23 Received Heat Transfer 1863 | 30 . . 231 306 384 168 . 390 354 Siege Activations . | . . . . . . . . . . Robots Corrupted . | . . . . . . . . . . Combat Hostiles . | . . . . . . . . . . Parts Fried 1 | . . . . . 1 . . . . Impact Corruptions . | . . . . . . . . . . Robots Melted 1 | . . . . . . . . . 1 Combat Hostiles 1 | . . . . . . . . . 1 Parts Melted 12 | . . . . 5 3 . . 2 2 Heat Transferred 5782 | 100 . . 374 1455 1204 592 . 400 1657 Parts Sabotaged . | . . . . . . . . . . Parts Stolen . | . . . . . . . . . . Parts Stripped . | . . . . . . . . . . Power Chain Reactions 2 | 1 . . . . 1 . . . . Alert | -11 -10 -10 -9 -8 -7 -7 -7 -6 -5 ------- Run | Yrd Mat Min Mat Mat Fac Low Low Fac Fac Peak Influence 320 | 25 91 25 151 170 136 . . 261 320 Initial 25 | . 12 25 6 15 19 . . . . Average 70 | 1 37 25 84 90 61 . . 72 80 Maximum Alert Level 1 | . . . . . . . . 1 1 Low Security (%) 94 | 100 100 100 100 100 100 . . 83 86 Level 1 5 | . . . . . . . . 16 13 Level 2 . | . . . . . . . . . . Level 3 . | . . . . . . . . . . Level 4 . | . . . . . . . . . . Level 5 . | . . . . . . . . . . High Security . | . . . . . . . . . . Max Security . | . . . . . . . . . . Squads Dispatched 11 | . . . 1 . 2 . . 6 2 Investigation 1 | . . . . . . . . 1 . Extermination 2 | . . . . . . . . 1 1 Reinforcement 8 | . . . 1 . 2 . . 4 1 Assault . | . . . . . . . . . . Garrison . | . . . . . . . . . . Intercept . | . . . . . . . . . . Searches Triggered . | . . . . . . . . . . Construction Impeded 1 | . . . . . . . . 1 . Haulers Reinforced 1 | . . . . . . . . 1 . Active Scanning Responses . | . . . . . . . . . . Cargo Convoy Interrupts . | . . . . . . . . . . Stealth | -11 -10 -10 -9 -8 -7 -7 -7 -6 -5 --------- Run | Yrd Mat Min Mat Mat Fac Low Low Fac Fac Distress Signals 3 | . . . . . . . . . 3 Communications Jammed . | . . . . . . . . . . Distress Signals . | . . . . . . . . . . Times Spotted 87 | 2 4 . 7 11 11 1 2 16 33 Peak Tracking Total 11 | 1 2 . 6 3 2 1 2 5 11 Tactical Retreats 14 | . . . . . 4 1 . 1 8 Traps | -11 -10 -10 -9 -8 -7 -7 -7 -6 -5 ------- Run | Yrd Mat Min Mat Mat Fac Low Low Fac Fac Traps Triggered 4 | . . . . 1 2 . . 1 . Indirectly . | . . . . . . . . . . Trap Hack Attempts . | . . . . . . . . . . Triggered . | . . . . . . . . . . Disarmed . | . . . . . . . . . . Reprogrammed . | . . . . . . . . . . Reused . | . . . . . . . . . . Traps Extracted . | . . . . . . . . . . Installed . | . . . . . . . . . . Triggered 2 | . . . . . . 2 . . . Machines | -11 -10 -10 -9 -8 -7 -7 -7 -6 -5 ---------- Run | Yrd Mat Min Mat Mat Fac Low Low Fac Fac Machines Disabled 10 | . . . 3 . . . . 7 . Max in Single Turn 5 | . . . 2 . . . . 5 . Machines Repaired . | . . . . . . . . . . Machines Dismantled . | . . . . . . . . . . Machines Sabotaged . | . . . . . . . . . . Overloaded Fab Kills . | . . . . . . . . . . Hacking | -11 -10 -10 -9 -8 -7 -7 -7 -6 -5 --------- Run | Yrd Mat Min Mat Mat Fac Low Low Fac Fac Machines Accessed 2 | . . . 1 . . 1 . . . Terminals 1 | . . . 1 . . . . . . Fabricators . | . . . . . . . . . . Repair Stations . | . . . . . . . . . . Recycling Units . | . . . . . . . . . . Scanalyzers . | . . . . . . . . . . Garrison Access . | . . . . . . . . . . Total Hacks 2 | . . . 1 . . 1 . . . Successful 2 | . . . 1 . . 1 . . . Failed . | . . . . . . . . . . Catastrophic . | . . . . . . . . . . Database Lockouts . | . . . . . . . . . . Manual . | . . . . . . . . . . Terminals 1 | . . . 1 . . . . . . Fabricators . | . . . . . . . . . . Repair Stations . | . . . . . . . . . . Recycling Units . | . . . . . . . . . . Scanalyzers . | . . . . . . . . . . Garrison Access . | . . . . . . . . . . Terminal Hacks 2 | . . . 1 . . 1 . . . Open Door 1 | . . . . . . 1 . . . Alert Level 1 | . . . 1 . . . . . . Fabricator Hacks . | . . . . . . . . . . Repair Station Hacks . | . . . . . . . . . . Recycling Unit Hacks . | . . . . . . . . . . Scanalyzer . | . . . . . . . . . . Garrison Access Hacks . | . . . . . . . . . . Unauthorized Hacks . | . . . . . . . . . . Terminals . | . . . . . . . . . . Fabricators . | . . . . . . . . . . Repair Stations . | . . . . . . . . . . Recycling Units . | . . . . . . . . . . Scanalyzers . | . . . . . . . . . . Garrison Access . | . . . . . . . . . . Data Cores Recovered . | . . . . . . . . . . Used . | . . . . . . . . . . Hacking Detections . | . . . . . . . . . . Full Trace Events . | . . . . . . . . . . Feedback Events . | . . . . . . . . . . Feedback Blocked . | . . . . . . . . . . Robot Schematics Acquired . | . . . . . . . . . . Robots Built . | . . . . . . . . . . Authchips . | . . . . . . . . . . Time . | . . . . . . . . . . Total Robot Build Rating . | . . . . . . . . . . Part Schematics Acquired . | . . . . . . . . . . Parts Built . | . . . . . . . . . . Authchips . | . . . . . . . . . . Time . | . . . . . . . . . . Total Part Build Rating . | . . . . . . . . . . Parts Repaired . | . . . . . . . . . . Time . | . . . . . . . . . . Parts Recycled . | . . . . . . . . . . Recycled Matter . | . . . . . . . . . . Retrieved Matter . | . . . . . . . . . . Retrieved Components . | . . . . . . . . . . Parts Scanalyzed . | . . . . . . . . . . Part Schematics Acquired . | . . . . . . . . . . Parts Damaged . | . . . . . . . . . . Bothacking | -11 -10 -10 -9 -8 -7 -7 -7 -6 -5 ------------ Run | Yrd Mat Min Mat Mat Fac Low Low Fac Fac Used RIF Installer . | . . . . . . . . . . Robots Hacked . | . . . . . . . . . . Non-combat . | . . . . . . . . . . Combat . | . . . . . . . . . . Robot Hacks Applied . | . . . . . . . . . . Relay Couplers Released . | . . . . . . . . . . Fabnet Peak Effective % . | . . . . . . . . . . Robots Rewired . | . . . . . . . . . . Allies Hacked . | . . . . . . . . . . Hacks Repelled . | . . . . . . . . . . Allies | -11 -10 -10 -9 -8 -7 -7 -7 -6 -5 -------- Run | Yrd Mat Min Mat Mat Fac Low Low Fac Fac Total Allies . | . . . . . . . . . . Largest Group . | . . . . . . . . . . Highest-Rated Group . | . . . . . . . . . . Highest-Rated Ally . | . . . . . . . . . . Total Orders . | . . . . . . . . . . Ally Attacks . | . . . . . . . . . . Total Damage . | . . . . . . . . . . Kills . | . . . . . . . . . . Allies Corrupted . | . . . . . . . . . . Allies Melted . | . . . . . . . . . . Intel | -11 -10 -10 -9 -8 -7 -7 -7 -6 -5 ------- Run | Yrd Mat Min Mat Mat Fac Low Low Fac Fac Robot Analysis Total . | . . . . . . . . . . Derelict Logs Recovered . | . . . . . . . . . . Drone Launches . | . . . . . . . . . . Drone Recoveries . | . . . . . . . . . . Exploration | -11 -10 -10 -9 -8 -7 -7 -7 -6 -5 ------------- Run | Yrd Mat Min Mat Mat Fac Low Low Fac Fac Turns Passed 4513 | 112 223 119 602 502 776 662 74 468 975 Spaces Moved 3205 | 87 173 98 321 235 442 458 95 366 930 Core 1146 | 29 . . . 52 . 36 11 88 930 Treads 1050 | . . . 93 183 442 332 . . . Legs 835 | 58 173 98 228 . . . . 278 . Wheels 174 | . . . . . . 90 84 . . Hover . | . . . . . . . . . . Flight . | . . . . . . . . . . Fastest Speed 50 | 50 120 120 120 150 152 50 50 50 50 Average Speed 121 | 96 120 120 154 158 152 137 76 106 91 Slowest Speed 600 | 120 120 120 260 200 160 600 80 120 150 Overloaded Moves . | . . . . . . . . . . Propulsion Burnouts . | . . . . . . . . . . Robots Hopped . | . . . . . . . . . . Cave-ins Triggered . | . . . . . . . . . . Exploration Rate (%) 26 | 5 33 40 24 28 9 68 18 16 26 Regions Visited 9 Branch Regions 3 Pre-discovered Areas . | . . . . . . . . . . Known Exits Taken 9 | 1 1 1 1 1 1 1 1 1 . Unknown Exits Taken . | . . . . . . . . . . Scrap Searched 1 | . . . . . . 1 . . . Spaces Dug . | . . . . . . . . . . Terrain Destroyed 179 | . . . 69 . 4 . . 106 . Melee . | . . . . . . . . . . Projectile . | . . . . . . . . . . AOE 179 | . . . 69 . 4 . . 106 . Terrain Rammed . | . . . . . . . . . . Walls Destroyed . | . . . . . . . . . . Machines Disabled . | . . . . . . . . . . Actions | -11 -10 -10 -9 -8 -7 -7 -7 -6 -5 --------- Run | Yrd Mat Min Mat Mat Fac Low Low Fac Fac Total 3547 | 109 183 99 387 305 494 475 95 401 999 Wait . | . . . . . . . . . . Move 3196 | 86 172 97 320 234 441 457 94 365 930 Hop . | . . . . . . . . . . Pick Up 44 | 11 2 1 10 5 3 . . 5 7 Fast Attach 6 | . . . 2 . 2 1 . 1 . Attach 39 | 6 1 1 10 5 2 2 1 4 7 Detach 1 | . . . 1 . . . . . . Swap 1 | . . . . . . 1 . . . Drop 9 | . 2 . 4 1 . 1 . . 1 Fire 246 | 6 6 . 39 60 46 13 . 26 50 Melee . | . . . . . . . . . . Ram 4 | . . . . . . . . . 4 Kick . | . . . . . . . . . . Crush 1 | . . . 1 . . . . . . Escape Stasis . | . . . . . . . . . . Rewire . | . . . . . . . . . . Trap . | . . . . . . . . . . Miscellaneous . | . . . . . . . . . . Route ------- -11/Scrapyard -10/Materials (discovered 2 exits: *Min / Sub) -10/Mines (discovered 2 exits: *Mat / Sub) -9/Materials -8/Materials -7/Factory (discovered 2 exits: *Sto / *Low) -7/Lower Caves -7/Lower Caves -6/Factory (discovered 2 exits: *Fac / *Low) -5/Factory History --------- Turn | Location | Event 2 | -11/Scrapyard | Met Revision 17 77 | -11/Scrapyard | Identified exit to Materials 77 | -11/Scrapyard | Discovered exit to Materials (range 8) 113 | -11/Scrapyard | Entered Materials 113 | -10/Materials | Evolved 1 slot: Weapon x1 215 | -10/Materials | Identified exit to Subcaves 215 | -10/Materials | Discovered exit to Subcaves (range 12) 307 | -10/Materials | Identified exit to Mines 307 | -10/Materials | Discovered exit to Mines (range 7) 336 | -10/Materials | Entered Mines 341 | -10/Mines | Build established: Hacker-Mutant 432 | -10/Mines | Identified exit to Materials 432 | -10/Mines | Discovered exit to Materials (range 10) 437 | -10/Mines | Discovered exit to Subcaves (range 7) 438 | -10/Mines | Received a Rocket Launcher from a helpful Derelict 455 | -10/Mines | Entered Materials 455 | -9/Materials | Evolved 2 slots: Power x2 1027 | -9/Materials | Identified exit to Materials 1027 | -9/Materials | Discovered exit to Materials (range 9) 1057 | -9/Materials | Entered another Materials area 1057 | -8/Materials | Evolved 2 slots: Power x2 1244 | -8/Materials | Lost 3 parts (2n1u) 1533 | -8/Materials | Identified exit to Factory 1533 | -8/Materials | Discovered exit to Factory (range 16) 1559 | -8/Materials | Entered Factory 1559 | -7/Factory | Evolved 2 slots: Weapon x2 1765 | -7/Factory | Identified exit to Storage 1765 | -7/Factory | Discovered exit to Storage (range 7) 2233 | -7/Factory | Build established: Hacker-Tank 2302 | -7/Factory | Identified exit to Lower Caves 2302 | -7/Factory | Discovered exit to Lower Caves (range 9) 2335 | -7/Factory | Entered Lower Caves 2693 | -7/Lower Caves | Build established: Hacker-Bomber 2794 | -7/Lower Caves | Spotted B-75 Beast 2941 | -7/Lower Caves | Lost 8 parts (2n6w) 2991 | -7/Lower Caves | Identified exit to Lower Caves 2991 | -7/Lower Caves | Discovered exit to Lower Caves (range 9) 2997 | -7/Lower Caves | Entered another Lower Caves area 3061 | -7/Lower Caves | Core integrity fell below 50% 3067 | -7/Lower Caves | Identified exit to Factory 3067 | -7/Lower Caves | Discovered exit to Factory (range 8) 3071 | -7/Lower Caves | Entered Factory 3071 | -6/Factory | Evolved 2 slots: Weapon x2 3165 | -6/Factory | Build established: Hacker-Mutant 3398 | -6/Factory | Identified exit to Lower Caves 3398 | -6/Factory | Discovered exit to Lower Caves (range 17) 3536 | -6/Factory | Identified exit to Factory 3536 | -6/Factory | Discovered exit to Factory (range 6) 3539 | -6/Factory | Entered another Factory area 3539 | -5/Factory | Evolved 2 slots: Power x1, Propulsion x1 3560 | -5/Factory | Lost 3 parts (2n1w) 4452 | -5/Factory | Core integrity fell below 50% 4488 | -5/Factory | Core integrity fell below 20% 4514 | -5/Factory | Destroyed by H-66 Slayer with Gauss Rifle Last Messages --------------- Penetrated by Slug. Slug penetrates Wall. Acquired Imp. Arc Projector. Slug penetrates Wall. P-70 Sage resets P-70 Sage, system corruption cleaned. Penetrated by Slug. Slug penetrates Wall. Penetrated by Slug. Imp. Arc Projector destroyed. Slug penetrates Wall. Penetrated by Slug. Slug penetrates Wall. Penetrated by Slug. [Achievement: First Step to Greatness] The achievement interface (ESC then open Records) offers an effective way to explore all of your earned achievements as well as seek out new goals for future runs. [Achievement: 5k Club] Map ----- +----------------------------------------------------+ | ?????????????????????????????????????????????????? | | ?????????????????????????????????????????????????? | | ?????????????????????????????????????????????????? | | ?????????????????????????????????????????????????? | | ?????????????????????????????????????????????????? | | ?????????????????????????????????????????????????? | | ?????????????????????????????????????????????????? | | ?????????????????????????????????????????????????? | | ?????????????????????????????????????????????????? | | ?????????????????????????????????????????????????? | | ?????????????????????????????????????????????????? | | ?????????????????????????????????????????????????? | | ?????????????????????????????????????????????????? | | ?????????????????????????????????????????????????? | | ?????????????????????????????????????????????????? | | ?????????????##############????????? ????????? | | ?????????????# ! ! #????????# #???????? | | ?????????????# #????????# #???????? | | ?????????????# """ """ #????????# +???????? | | ?????????????# """ """ #????????# #???????? | | ?????????????# """ """h #????????# #???????? | | ?????????????# hp #????????# ########? | | ?????????????# """ """ #????????# #? | | ?????????????# """ """ #????????# #? | | ????#????????# """ """p #????????# #? | | ????# ??????# Y @#????????# +? | | ???## ????# #????????# #? | | ???# ??# #????????# #? | | ???# ###+#############+##### #? | | ???# = ## | | ???# !%! | | ???+ * | | ???# | | ???# ## | | ???# ###+#######+############"###########? | | ???# ! ???????????????????# #???? | | ???### #????????????????????# """" """" #???? | | ###### #????????????????????# """" """" #???# | | ##???????????????????# """" """" #???# | | ""#??????????????????# """" """" #???# | | """ Y"#??????????????????# """" """" ?????# | | """ " ""#??????????????????#?"""" """"??????# | | """ "" #?????????????????????????? ??????# | | G ###+########??????????????? ????????# | | "" #??????????????? ????????? | | " #???# #??????????????? ????????? | | #???# ##########?????? ????????? | | ######???# #???????##????????? | | #######+######??????# #########?????????? | | # ######## # #?????????? | +----------------------------------------------------+ Best States ------------- Heat Dissipation 40 Energy Generation 17 Energy Capacity 440 Matter Stores 300 Matter Capacity 300 Sight Range 18 Terrain Scan Density 10 Armor Coverage 150 Resistance: KI 35 Resistance: TH 35 Resistance: EX 35 Resistance: EM 35 Resistance: I 35 Resistance: S 35 Resistance: P 35 Utility Shielding 66 Evasion (%) 55 Recoil Reduction 2 Offensive Hacking 20 Item Schematics ----------------- None Robot Schematics ------------------ None Fabricated ------------ Nothing Alien Tech Used ----------------- None Achievements -------------- 5k Club Crack Shot Executioner First Step to Greatness It's Just You Loot Pinata Made in Tau Ceti IV Oops Risk Taker Tourist Uninvited Guest Challenges ------------ None Game ------ Seed FissionMicroRegenerator Manual? 0 Play Time 01:13:30 Cumulative 1.1 hours Start 2024.04.04 @ 16:57:17 End 2024.04.11 @ 21:23:47 Sessions 17 Manual Loads 0 Difficulty Explorer Special Mode None Game No. 1 Rogue 0 Adventurer 0 Explorer 1 Win Type - Total 0 Types 0/0/0/0/0/0/0/0/0 Lore% 0 Gallery% 3 Achievement% 4 Wizard Run 0 Options --------- Layout 1 ASCII 0 Keyboard 0 Movement Mouse Keybinds 0 Fullscreen 1 Font 16/SmallcapsGlow Map View 50x40 Zoom Use 0% Tactical HUD 0 Map Filters NONE Filters NONE Steam SD RUN: e100796f-05f2-4700-aa62-5a9293be4941